bitfinex-derivatives/quotes_SOLF0:USTF0_20250516
["timestamp","ask_amount","ask_price","bid_price","bid_amount"]
[1747432884425,65.7388,168.9,168.87,5.9197]
[1747432886131,59.82,168.9,168.88,5.9194]
[1747432886830,65.7389,168.9,168.87,5.9198]
[1747432887022,65.7389,168.9,168.85,3.9013]
[1747432887023,59.82,168.9,168.85,1.8719]
[1747432887733,59.82,168.9,168.82,1.8573]
[1747432888223,5.9196,168.88,168.85,5.9202]
[1747432890631,59.84,168.87,168.85,5.9202]
[1747432890832,59.82,168.86,168.85,5.9202]
[1747432892020,1.9432,168.94,168.82,1.8573]
[1747432892021,59.84,168.88,168.87,5.9197]
[1747432892333,119.66,168.88,168.87,5.9197]
[1747432892728,119.66,168.88,168.86,5.92]
[1747432892930,59.82,168.87,168.86,5.92]
[1747432896135,59.82,168.87,168.83,9.7731452]
[1747432896831,59.84,168.9,168.89,5.9191]
[1747432897037,119.66,168.9,168.89,5.9191]
[1747432899440,119.66,168.9,168.88,5.9193]
[1747432900743,119.66,168.9,168.89,5.9191]
[1747432901346,59.84,168.9,168.89,5.9191]
[1747432901539,119.66,168.9,168.89,5.9191]
[1747432902643,119.66,168.9,168.88,5.9193]
[1747432904644,119.66,168.9,168.86,5.92]
[1747432905341,5.9194,168.89,168.86,5.92]
[1747432905546,119.66,168.9,168.87,5.9197]
[1747432905749,119.66,168.9,168.82,1.8573]
[1747432906250,119.66,168.9,168.88,5.9193]
[1747432906847,119.66,168.9,168.89,5.9191]
[1747432915966,119.66,168.9,168.82,13.6998]
[1747432916866,119.66,168.9,168.88,5.9194]
[1747432917266,119.66,168.9,168.82,13.6998]
[1747432917467,119.66,168.9,168.88,5.9191]
[1747432918968,119.66,168.9,168.89,5.9191]
[1747432919265,119.66,168.9,168.82,13.6998]
[1747432919770,125.5788,168.9,168.82,13.6998]
[1747432920770,125.5788,168.9,168.87,5.9194]
[1747432920963,119.66,168.9,168.82,13.6998]
[1747432921270,119.66,168.9,168.88,5.9194]
[1747432922869,125.5789,168.9,168.88,5.9194]
[1747432923375,119.66,168.9,168.88,5.9194]
[1747432924472,119.66,168.9,168.89,5.9191]
[1747432925271,59.84,168.9,168.89,5.9191]
[1747432925464,119.64,168.9,168.89,5.9191]
[1747432926473,119.64,168.9,168.82,1.8573]
[1747432926971,5.9193,168.89,168.86,5.9198]
[1747432927175,119.64,168.9,168.82,1.8573]
[1747432927471,5.9196,168.88,168.85,5.9201]
[1747432927673,119.64,168.9,168.82,1.8573]
[1747432928076,125.5588,168.9,168.87,5.9196]
[1747432930070,59.8,168.89,168.87,5.9196]
[1747432930275,5.9201,168.87,168.84,5.9207]
[1747432930475,59.8,168.89,168.81,1.9048]
[1747432931077,5.9204,168.86,168.83,5.9209]
[1747432931279,59.8,168.85,168.83,5.9209]
[1747432933077,59.8,168.85,168.75,3.9354]
[1747432933277,59.8,168.85,168.76,1.8807]
[1747432933669,5.9221,168.81,168.78,5.9229]
[1747432933868,59.8,168.8,168.78,5.9229]
[1747432934284,59.8,168.8,168.79,5.9226]
[1747432937778,59.8,168.8,168.72,9.78547506]
[1747432938386,59.8,168.8,168.73,3.9044]
[1747432938680,59.8,168.8,168.79,5.9226]
[1747432939587,59.8,168.8,168.73,5.7666]
[1747432940379,65.7224,168.8,168.73,5.7666]
[1747432940782,59.8,168.8,168.7,59.8]
[1747432940984,5.9231,168.78,168.69,9.78547506]
[1747432941280,59.82,168.77,168.74,5.9241]
[1747432941486,59.8,168.76,168.74,5.9241]
[1747432942487,9.78547506,168.82,168.69,9.78547506]
[1747432942787,5.9224,168.8,168.69,9.78547506]
[1747432942985,59.82,168.79,168.69,9.78547506]
[1747432943189,59.82,168.79,168.76,5.9234]
[1747432943484,59.82,168.79,168.69,9.78547506]
[1747432943989,5.9235,168.77,168.69,9.78547506]
[1747432944181,59.82,168.76,168.69,9.78547506]
[1747432945086,59.82,168.76,168.73,5.9244]
[1747432945285,59.82,168.76,168.69,9.78547506]
[1747432946683,65.744,168.75,168.69,9.78547506]
[1747432946879,65.744,168.75,168.67,65.5866]
[1747432947175,59.82,168.75,168.67,5.7666]
[1747432947379,5.9247,168.73,168.67,5.7666]
[1747432947688,59.82,168.72,168.69,5.9259]
[1747432947889,65.745,168.72,168.69,5.9259]
[1747432948087,65.745,168.72,168.68,5.9263]
[1747432948393,59.82,168.71,168.61,5.6235]
[1747432948586,59.82,168.71,168.58,9.78547506]
[1747432948786,61.8304,168.71,168.58,9.78547506]
[1747432949491,5.9272,168.66,168.61,5.9287]
[1747432949785,119.66,168.65,168.57,1.846]
[1747432949985,119.7,168.64,168.57,1.846]
[1747432950184,59.88,168.63,168.57,1.846]
[1747432950486,5.9286,168.62,168.58,5.9299]
[1747432950682,59.88,168.63,168.57,1.846]
[1747432951086,59.88,168.63,168.55,9.7084]
[1747432951087,5.9292,168.61,168.55,9.7084]
[1747432951294,59.84,168.6,168.55,9.7084]
[1747432951589,61.66,168.59,168.55,1.8891]
[1747432951790,61.66,168.59,168.54,5.9313]
[1747432951987,67.6,168.59,168.29,17.74]
[1747432952186,9.82289415,168.42,168.27,1.24090855]
[1747432952486,5.9381,168.35,168.28,1.18849536]
[1747432952684,511.94,168.45,168.33,5.9385]
[1747432952888,9.82289415,168.41,168.34,1.18807175]
[1747432953090,125.72,168.4,168.34,1.18807175]
[1747432953283,62.88,168.39,168.34,1.18807175]
[1747432953478,62.96,168.39,168.34,1.18807175]
[1747432953682,62.98,168.4,168.34,7.12617175]
[1747432953882,63.08,168.42,168.34,1.18807175]
[1747432954293,9.82289415,168.47,168.34,64.36807175]
[1747432954487,63.18,168.46,168.34,64.36807175]
[1747432954881,9.82289415,168.5,168.34,64.36807175]
[1747432955087,63.24,168.49,168.36,9.82289415]
[1747432955280,63.28,168.52,168.39,9.82289415]
[1747432955482,63.28,168.52,168.4,63.28]
[1747432955685,63.28,168.52,168.41,62.92]
[1747432955988,63.46,168.54,168.42,9.82289415]
[1747432956381,63.46,168.54,168.5,5.9327]
[1747432956790,63.46,168.54,168.48,62.92]
[1747432957580,63.46,168.54,168.49,5.9328]
[1747432957886,63.46,168.54,168.48,62.92]
[1747432958091,63.46,168.54,168.5,5.9327]
[1747432958290,63.46,168.54,168.48,62.92]
[1747432958691,63.46,168.54,168.5,5.9327]
[1747432958887,63.46,168.54,168.48,62.92]
[1747432959188,63.48,168.54,168.48,62.92]
[1747432960695,63.48,168.54,168.52,5.9317]
[1747432961194,63.74,168.53,168.46,1.9867]
[1747432962494,5.9313,168.55,168.46,1.9867]
[1747432962794,63.74,168.54,168.46,1.9867]
[1747432963299,63.74,168.54,168.45,62.94]
[1747432963783,5.9321,168.53,168.46,5.9339]
[1747432963986,63.74,168.54,168.46,5.9339]
[1747432964194,62.94,168.52,168.43,3.8914]
[1747432964395,62.94,168.51,168.43,3.8914]
[1747432965593,68.8725,168.51,168.45,5.9342]
[1747432965788,62.94,168.51,168.45,5.9342]
[1747432965992,15.73221744,168.49,168.39,62.94]
[1747432966192,63.6,168.48,168.42,5.9355]
[1747432966392,62.94,168.47,168.42,5.9355]
[1747432966891,62.94,168.47,168.4,5.9362]
[1747432967098,62.94,168.47,168.36,62.94]
[1747432967589,5.9346,168.45,168.4,5.936]
[1747432967785,63.66,168.44,168.36,62.94]
[1747432968097,63.66,168.44,168.41,5.9359]
[1747432968298,63.66,168.44,168.34,5.8217]
[1747432968499,63.66,168.44,168.35,62.96]
[1747432968687,62.96,168.43,168.38,5.9367]
[1747432969597,62.96,168.43,168.39,5.9366]
[1747432970802,62.96,168.43,168.35,62.96]
[1747432971395,62.96,168.43,168.38,5.9368]
[1747432971702,68.8953,168.43,168.38,5.9368]
[1747432972002,62.96,168.43,168.38,5.9368]
[1747432972205,62.96,168.43,168.35,62.96]
[1747432972405,5.9342,168.46,168.35,62.96]
[1747432972592,126.5,168.45,168.4,5.936]
[1747432973005,132.4346,168.45,168.4,5.936]
[1747432973203,126.5,168.45,168.35,62.96]
[1747432973400,62.96,168.45,168.35,62.96]
[1747432973800,63.5,168.44,168.41,5.9357]
[1747432974408,62.96,168.45,168.35,62.96]
[1747432974602,63.66,168.45,168.36,63.64]
[1747432974798,62.98,168.48,168.45,5.9345]
[1747432974997,64.84715498,168.47,168.45,5.9345]
[1747432975304,1.18722545,168.46,168.45,5.9345]
[1747432975503,1.18722545,168.46,168.39,62.98]
[1747432976000,1.18722545,168.46,168.45,5.9345]
[1747432978506,126.64,168.51,168.48,5.9334]
[1747432979106,126.64,168.51,168.47,5.9337]
[1747432979307,126.64,168.51,168.43,62.98]
[1747432979507,132.5724,168.51,168.43,62.98]
[1747432979709,126.64,168.51,168.43,62.98]
[1747432980006,9.82837067,168.49,168.41,1.9711]
[1747432980202,9.8351045,168.49,168.41,1.9711]
[1747432980609,5.9345,168.46,168.41,7.9068]
[1747432980800,69.5345,168.46,168.41,7.9068]
[1747432981102,5.9346,168.45,168.41,7.9068]
[1747432981503,5.9346,168.45,168.41,5.9357]
[1747432981697,63.6,168.46,168.37,62.98]
[1747432982104,63.6,168.46,168.39,5.9363]
[1747432982702,5.9352,168.44,168.39,5.9363]
[1747432983009,63.6,168.46,168.39,5.9363]
[1747432983305,63.6,168.46,168.36,63.56]
[1747432984312,69.4533,168.49,168.45,5.9343]
[1747432984509,70.64031406,168.49,168.45,5.9343]
[1747432985308,64.70701406,168.49,168.41,63.56]
[1747432985609,64.70701406,168.49,168.45,5.9343]
[1747432985909,70.64041406,168.49,168.45,5.9343]
[1747432987410,7.12041406,168.49,168.45,5.9343]
[1747432987613,64.68701406,168.49,168.46,5.9341]
[1747432987807,1.18701406,168.49,168.46,5.9341]
[1747432988207,7.12021406,168.49,168.45,5.9344]
[1747432988910,1.18701406,168.49,168.46,5.9338]
[1747432989106,1.18701406,168.49,168.41,63.56]
[1747432989310,1.18701406,168.49,168.42,1.8662]
[1747432989708,1.18701406,168.49,168.48,5.9334]
[1747432991814,1.18701406,168.49,168.45,63.54]
[1747432992819,1.18701406,168.49,168.47,5.9336]
[1747432993114,1.18701406,168.49,168.45,63.54]
[1747432993514,1.18701406,168.49,168.48,5.9334]
[1747432993714,63.74,168.51,168.45,63.54]
[1747432994215,63.74,168.51,168.49,5.9329]
[1747432994713,63.74,168.51,168.48,5.9332]
[1747432995712,69.6724,168.51,168.45,63.54]
[1747432995917,63.74,168.51,168.45,63.54]
[1747432996211,69.6726,168.51,168.45,63.54]
[1747432996615,63.74,168.51,168.45,63.54]
[1747432997018,69.6725,168.51,168.47,5.9335]
[1747432997219,69.6725,168.51,168.45,63.54]
[1747432997414,63.74,168.51,168.45,63.54]
[1747432997614,5.9329,168.5,168.46,5.9339]
[1747432998920,63.74,168.51,168.45,63.54]
[1747432998921,63.74,168.51,168.45,69.4742]
[1747432999224,63.74,168.51,168.43,1.9898]
[1747432999525,63.74,168.51,168.43,5.935]
[1747432999821,5.934,168.47,168.43,5.935]
[1747433000019,69.574,168.47,168.43,5.935]
[1747433001011,69.574,168.47,168.44,5.9347]
[1747433001215,63.64,168.47,168.44,5.9347]
[1747433002322,69.5738,168.47,168.43,5.935]
[1747433002511,63.64,168.47,168.39,65.4275]
[1747433002716,5.9343,168.46,168.39,65.4275]
[1747433003025,63.64,168.47,168.39,65.4275]
[1747433004123,5.9343,168.46,168.42,5.9353]
[1747433005730,5.9343,168.46,168.43,5.9351]
[1747433008130,5.9345,168.45,168.42,5.9354]
[1747433008428,63.64,168.47,168.39,65.4275]
[1747433008725,5.9344,168.46,168.43,5.9352]
[1747433009115,63.64,168.47,168.39,65.4275]
[1747433009116,11.8609,168.57,168.39,65.4275]
[1747433009321,5.9329,168.5,168.4,65.1279]
[1747433009525,69.2129,168.5,168.4,65.1279]
[1747433009723,69.2129,168.5,168.46,5.9339]
[1747433010227,69.2129,168.5,168.4,65.1279]
[1747433011432,69.2129,168.5,168.44,5.9346]
[1747433012029,69.2129,168.5,168.4,65.1279]
[1747433012626,5.9333,168.49,168.44,5.9345]
[1747433012829,63.28,168.5,168.4,65.1279]
[1747433013228,5.9337,168.48,168.44,5.9349]
[1747433013724,5.934,168.47,168.43,5.9351]
[1747433013931,63.1,168.48,168.4,1.8479]
[1747433014433,5.9349,168.45,168.41,5.9359]
[1747433014632,63.1,168.48,168.41,5.9359]
[1747433015629,5.9351,168.44,168.4,7.784]
[1747433016124,5.9351,168.44,168.4,1.8479]
[1747433016330,5.9347,168.45,168.41,5.9359]
[1747433017025,5.9351,168.44,168.41,5.9359]
[1747433017330,62.94,168.46,168.41,5.9359]
[1747433017531,5.9347,168.45,168.41,5.9359]
[1747433018430,5.935,168.44,168.41,5.9359]
[1747433020131,5.9346,168.45,168.42,5.9355]
[1747433021425,5.9346,168.45,168.4,1.8479]
[1747433021632,5.9346,168.45,168.41,5.9358]
[1747433024039,5.9349,168.44,168.41,5.9358]
[1747433024232,62.94,168.46,168.41,5.9358]
[1747433024431,62.94,168.46,168.42,5.9356]
[1747433024828,5.9347,168.45,168.42,5.9356]
[1747433025039,5.9347,168.45,168.41,5.9358]
[1747433025239,5.9347,168.45,168.4,1.8479]
[1747433025545,5.9347,168.45,168.42,5.9354]
[1747433026343,5.9347,168.45,168.41,5.9358]
[1747433026841,62.94,168.46,168.4,1.8479]
[1747433027040,5.9342,168.47,168.4,1.8479]
[1747433027240,62.56,168.49,168.4,1.8479]
[1747433027443,63.1,168.51,168.4,1.8479]
[1747433027637,62.54,168.5,168.41,68.88444007]
[1747433028246,5.9334,168.49,168.42,127.6272]
[1747433028639,5.9335,168.48,168.42,127.6272]
[1747433028843,62.54,168.5,168.42,127.6272]
[1747433029144,5.9337,168.48,168.44,5.9347]
[1747433030347,5.9339,168.47,168.44,5.9347]
[1747433030946,5.9339,168.47,168.43,5.9351]
[1747433031345,5.9343,168.46,168.42,65.0872]
[1747433031651,62.48,168.5,168.43,5.9351]
[1747433031952,5.934,168.47,168.43,5.9351]
[1747433032948,5.934,168.47,168.44,5.9347]
[1747433040767,5.9336,168.48,168.44,5.9347]
[1747433041060,5.9336,168.48,168.42,65.0872]
[1747433041561,5.9336,168.48,168.45,5.9344]
[1747433042058,512.86,168.59,168.49,5.9329]
[1747433042263,61.98,168.55,168.43,61.98]
[1747433042559,5.9311,168.55,168.44,11.8696]
[1747433042757,61.96,168.55,168.44,6.34444007]
[1747433043363,61.96,168.55,168.45,11.8689]
[1747433043563,61.96,168.55,168.46,61.96]
[1747433043762,61.96,168.55,168.52,5.9318]
[1747433044158,67.891,168.55,168.52,5.9318]
[1747433044359,61.96,168.55,168.52,5.9318]
[1747433044862,61.96,168.55,168.47,1.9266]
[1747433045465,61.96,168.55,168.47,63.8066]
[1747433045663,61.96,168.55,168.53,5.9315]
[1747433045869,61.96,168.55,168.47,63.8066]
[1747433046053,61.96,168.55,168.53,5.9315]
[1747433046255,61.96,168.55,168.47,63.8066]
[1747433046762,5.9316,168.54,168.47,63.8066]
[1747433047563,5.9316,168.54,168.51,5.9324]
[1747433048066,1.18652112,168.56,168.47,63.8066]
[1747433048263,62.96652112,168.56,168.47,63.8066]
[1747433050065,62.96652112,168.56,168.54,5.9312]
[1747433050767,62.96652112,168.56,168.55,5.931]
[1747433051470,1.18652112,168.56,168.55,5.931]
[1747433053870,1.18652112,168.56,168.54,5.9312]
[1747433055072,1.18652112,168.56,168.55,5.931]
[1747433058674,5.9293,168.6,168.56,5.9305]
[1747433059171,5.9293,168.6,168.52,1.8813]
[1747433060074,5.9293,168.6,168.56,5.9303]
[1747433060271,5.9293,168.6,168.52,1.8813]
[1747433060573,67.5489,168.61,168.58,5.9298]
[1747433061567,5.9289,168.61,168.58,5.9298]
[1747433061776,67.3089,168.61,168.58,5.9298]
[1747433061970,5.9289,168.61,168.58,5.9298]
[1747433062173,61.38,168.61,168.58,5.9298]
[1747433062769,61.38,168.61,168.59,5.9294]
[1747433062973,61.94,168.63,168.55,1.9157]
[1747433063273,61.36,168.63,168.6,5.9289]
[1747433063474,61.36,168.63,168.55,1.9157]
[1747433063874,61.36,168.63,168.61,5.9289]
[1747433064074,61.36,168.63,168.55,1.9157]
[1747433064673,61.3,168.63,168.55,1.9157]
[1747433065269,61.3,168.63,168.55,63.1957]
[1747433065576,61.3,168.63,168.62,5.9285]
[1747433067071,67.8673,168.66,168.62,5.9285]
[1747433067274,67.8673,168.66,168.63,5.9282]
[1747433067473,61.2,168.65,168.63,5.9282]
[1747433068677,61.2,168.65,168.58,61.92]
[1747433069275,61.94,168.66,168.58,61.92]
[1747433069476,61.16,168.67,168.59,71.43594007]
[1747433069778,190.03706898,168.69,168.59,71.43594007]
[1747433070175,128.87706898,168.69,168.59,71.43594007]
[1747433070371,190.01706898,168.69,168.59,71.43594007]
[1747433070581,195.94326898,168.69,168.65,5.9273]
[1747433072087,5.9265,168.68,168.65,5.9273]
[1747433074277,123.06,168.69,168.59,71.43594007]
[1747433074470,129.40444007,168.69,168.59,3.9315]
[1747433074974,5.9278,168.65,168.61,5.9286]
[1747433075176,61.0,168.65,168.61,5.9286]
[1747433075378,61.0,168.65,168.59,3.9315]
[1747433075977,66.9277,168.65,168.62,5.9284]
[1747433076582,66.9277,168.65,168.61,5.9287]
[1747433077175,5.9279,168.64,168.61,5.9287]
[1747433078981,66.9277,168.65,168.61,5.9287]
[1747433079286,61.0,168.65,168.61,5.9287]
[1747433079880,61.0,168.65,168.6,5.9291]
[1747433080075,61.0,168.65,168.59,3.9315]
[1747433080481,61.0,168.65,168.6,5.9292]
[1747433081181,5.9283,168.63,168.6,5.9292]
[1747433081781,5.928,168.64,168.6,5.9292]
[1747433083179,5.928,168.64,168.61,5.9288]
[1747433086783,66.9277,168.65,168.61,5.9288]
[1747433087285,66.9277,168.65,168.59,3.9315]
[1747433087286,66.9277,168.65,168.62,5.9285]
[1747433096785,67.33326944,168.65,168.47,20.55097893]
[1747433096992,6.33644641,168.62,168.48,3.9375]
[1747433097293,5.9307,168.57,168.48,3.9375]
[1747433097593,60.92,168.56,168.48,3.9375]
[1747433097892,66.8507,168.56,168.52,5.932]
[1747433101192,60.92,168.56,168.48,3.9375]
[1747433101688,5.9315,168.54,168.5,5.9327]
[1747433102196,5.9318,168.53,168.5,5.9327]
[1747433102393,60.92,168.56,168.5,5.9327]
[1747433102793,5.9319,168.53,168.49,5.9331]
[1747433103393,60.76,168.52,168.46,60.98]
[1747433104090,5.9325,168.51,168.47,5.9336]
[1747433104491,60.76,168.52,168.46,60.98]
[1747433105394,60.76,168.52,168.48,5.9334]
[1747433105597,60.76,168.52,168.46,60.98]
[1747433106191,5.9329,168.5,168.46,5.9341]
[1747433106795,60.76,168.52,168.44,5.7189]
[1747433106985,67.09673131,168.52,168.44,3.7869]
[1747433107388,5.9337,168.48,168.44,9.7217]
[1747433107591,66.6137,168.48,168.44,9.7217]
[1747433108898,66.6137,168.48,168.45,5.9345]
[1747433109298,66.6137,168.48,168.44,3.7869]
[1747433109499,66.6137,168.48,168.44,9.7216]
[1747433109791,66.6137,168.48,168.44,3.7869]
[1747433110296,66.6137,168.48,168.44,9.7216]
[1747433110701,60.68,168.48,168.44,3.7869]
[1747433111698,60.68,168.48,168.45,5.9345]
[1747433112693,6.33673131,168.52,168.44,3.7869]
[1747433112899,60.56,168.51,168.44,64.5069]
[1747433113099,60.56,168.51,168.45,2.0164]
[1747433114201,60.56,168.51,168.48,5.9332]
[1747433116300,66.4925,168.51,168.48,5.9332]
[1747433116501,66.4925,168.51,168.45,2.0164]
[1747433116997,60.56,168.51,168.48,5.9335]
[1747433118708,60.56,168.51,168.45,2.0164]
[1747433119101,60.56,168.51,168.44,64.5069]
[1747433119297,60.56,168.51,168.46,5.934]
[1747433119802,5.9333,168.49,168.46,5.934]
[1747433120605,5.9333,168.49,168.47,5.9338]
[1747433122208,5.9333,168.49,168.46,5.9341]
[1747433122501,5.9338,168.48,168.41,60.72]
[1747433122707,60.44,168.47,168.41,60.72]
[1747433123205,60.44,168.47,168.4,3.9909]
[1747433123510,60.44,168.47,168.44,5.9346]
[1747433123713,66.3739,168.47,168.44,5.9346]
[1747433124510,60.44,168.47,168.4,3.9909]
[1747433124909,60.44,168.47,168.44,5.9346]
[1747433125110,66.3739,168.47,168.44,5.9346]
[1747433125322,60.44,168.47,168.44,5.9346]
[1747433125522,60.44,168.47,168.46,5.9342]
[1747433125818,60.46,168.48,168.46,5.9342]
[1747433126516,60.46,168.48,168.45,5.9345]
[1747433130523,60.46,168.48,168.46,5.9341]
[1747433133025,60.46,168.48,168.45,5.9344]
[1747433133227,60.46,168.48,168.41,1.989]
[1747433133625,60.46,168.48,168.45,5.9343]
[1747433134425,60.46,168.48,168.43,5.935]
[1747433134824,60.46,168.48,168.41,1.989]
[1747433135125,5.934,168.47,168.41,1.989]
[1747433135433,5.934,168.47,168.43,5.935]
[1747433135629,60.46,168.48,168.43,5.935]
[1747433135922,60.46,168.48,168.4,3.9909]
[1747433136626,5.9347,168.45,168.42,5.9353]
[1747433136826,60.46,168.44,168.42,5.9353]
[1747433140129,66.3949,168.44,168.42,5.9353]
[1747433141831,66.3949,168.44,168.41,5.9358]
[1747433144041,60.46,168.44,168.41,5.9358]
[1747433145631,66.3949,168.44,168.41,5.9358]
[1747433145841,66.3949,168.44,168.4,5.9362]
[1747433146030,60.46,168.44,168.4,5.9362]
[1747433146230,66.395,168.44,168.4,5.9362]
[1747433147339,5.9354,168.43,168.4,5.9362]
[1747433147732,5.9354,168.43,168.39,5.9365]
[1747433148427,5.9354,168.43,168.37,3.8542]
[1747433148628,66.3949,168.44,168.37,3.8542]
[1747433149041,66.3949,168.44,168.4,5.9359]
[1747433149541,66.3949,168.44,168.37,3.8542]
[1747433150240,5.9353,168.43,168.4,5.9361]
[1747433150737,5.9353,168.43,168.37,3.8542]
[1747433150738,60.46,168.44,168.39,5.9364]
[1747433150935,66.79673131,168.44,168.3,60.46]
[1747433151135,66.79673131,168.44,168.29,66.79673131]
[1747433151840,5.9372,168.38,168.34,5.9381]
[1747433152035,61.16,168.37,168.29,66.79673131]
[1747433152743,61.16,168.37,168.34,5.9381]
[1747433154138,61.16,168.37,168.29,60.46]
[1747433155344,61.16,168.37,168.33,5.9386]
[1747433155645,61.16,168.37,168.29,60.46]
[1747433156142,61.16,168.37,168.33,5.9387]
[1747433156341,61.16,168.37,168.27,5.9489]
[1747433156545,61.16,168.37,168.29,5.94]
[1747433157342,5.9389,168.33,168.29,5.94]
[1747433157543,121.92,168.32,168.29,5.94]
[1747433158246,121.92,168.32,168.27,3.9793]
[1747433159149,121.92,168.32,168.23,60.48]
[1747433159655,127.8594,168.32,168.26,5.941]
[1747433159852,121.92,168.32,168.23,60.48]
[1747433160354,127.8592,168.32,168.27,5.9406]
[1747433160548,127.8592,168.32,168.23,60.48]
[1747433161552,127.8592,168.32,168.27,5.9406]
[1747433162049,5.9395,168.31,168.23,60.48]
[1747433163058,5.9398,168.3,168.23,60.48]
[1747433163356,121.92,168.32,168.23,60.48]
[1747433163650,121.92,168.32,168.22,3.7687]
[1747433164153,5.9401,168.29,168.24,5.9415]
[1747433164351,122.2,168.28,168.22,3.7687]
[1747433165353,61.74,168.27,168.22,3.7687]
[1747433165553,61.74,168.27,168.25,5.9413]
[1747433165754,61.74,168.27,168.22,3.7687]
[1747433167057,61.74,168.27,168.25,5.9412]
[1747433167556,61.74,168.27,168.22,3.7687]
[1747433167751,61.74,168.27,168.23,5.9421]
[1747433167953,61.74,168.27,168.22,3.7687]
[1747433168357,67.6808,168.27,168.22,3.7687]
[1747433168556,61.74,168.27,168.22,3.7687]
[1747433168861,61.74,168.27,168.26,5.9411]
[1747433169049,61.74,168.27,168.22,3.7687]
[1747433169449,61.74,168.27,168.25,5.9412]
[1747433171558,61.74,168.27,168.26,5.9411]
[1747433171858,61.74,168.27,168.22,3.7687]
[1747433172759,61.74,168.27,168.25,5.9413]
[1747433173058,61.74,168.27,168.22,3.7687]
[1747433173758,61.74,168.27,168.25,5.9411]
[1747433173960,61.74,168.27,168.22,3.7687]
[1747433174555,61.74,168.27,168.26,5.9411]
[1747433178670,61.74,168.27,168.25,5.9414]
[1747433178867,61.74,168.27,168.22,3.7687]
[1747433179264,61.74,168.27,168.26,5.9411]
[1747433182768,60.5,168.28,168.26,5.9411]
[1747433184375,6.33673131,168.32,168.22,3.7687]
[1747433184577,62.74,168.35,168.24,6.33673131]
[1747433184769,62.74,168.35,168.25,124.62]
[1747433184970,68.6781,168.35,168.25,124.62]
[1747433185377,62.74,168.35,168.25,124.62]
[1747433185675,5.9384,168.34,168.25,124.62]
[1747433185876,62.74,168.35,168.25,124.62]
[1747433186175,5.9389,168.33,168.29,5.9399]
[1747433186875,17.8,168.39,168.22,3.7687]
[1747433187067,6.33673131,168.32,168.15,6.33673131]
[1747433187372,5.942,168.24,168.2,5.9432]
[1747433187773,62.84,168.23,168.13,5.8978]
[1747433187971,5.9416,168.25,168.14,6.33673131]
[1747433188175,6.33673131,168.29,168.15,61.72]
[1747433188574,5.9417,168.25,168.22,5.9425]
[1747433188773,62.78,168.24,168.22,5.9425]
[1747433188978,62.78,168.23,168.15,61.72]
[1747433189175,11.8776,168.33,168.13,5.8978]
[1747433189383,6.33673131,168.26,168.13,5.8978]
[1747433189678,61.72,168.25,168.13,5.8978]
[1747433189882,6.33673131,168.26,168.13,5.8978]